fUSD/lending_fUSD_20240521
["ID","MTS","AMOUNT","RATE_DAILY","PERIOD"]
[327641643,1716269444339,-150.0,0.00035311,2]
[327641644,1716269444348,-150.0,0.00035312,2]
[327641645,1716269444358,-150.0,0.00035313,2]
[327641646,1716269444367,-150.0,0.00035314,2]
[327641647,1716269444377,-150.0,0.00035314,2]
[327641648,1716269444386,-150.0,0.00035314,2]
[327641649,1716269444396,-1000.0,0.00035316,2]
[327641650,1716269444406,-1000.0,0.00035316,2]
[327641651,1716269444416,-1000.0,0.00035316,2]
[327641652,1716269444425,-1000.0,0.00035316,2]
[327641653,1716269444435,-1000.0,0.00035316,2]
[327641654,1716269444445,-1000.0,0.00035316,2]
[327641655,1716269444455,-1000.0,0.00035316,2]
[327641656,1716269444464,-1000.0,0.00035316,2]
[327641657,1716269444473,-1000.0,0.00035316,2]
[327641658,1716269444483,-1000.0,0.00035316,2]
[327641659,1716269444493,-1000.0,0.00035316,2]
[327641660,1716269444504,-1000.0,0.00035316,2]
[327641661,1716269444514,-1000.0,0.00035316,2]
[327641662,1716269444523,-1000.0,0.00035316,2]
[327641663,1716269444533,-1000.0,0.00035316,2]
[327641664,1716269444544,-1000.0,0.00035316,2]
[327641665,1716269444554,-1000.0,0.00035316,2]
[327641666,1716269444564,-1000.0,0.00035316,2]
[327641667,1716269444575,-1000.0,0.00035316,2]
[327641668,1716269444585,-1000.0,0.00035316,2]
[327641669,1716269444596,-1000.0,0.00035316,2]
[327641670,1716269444606,-150.0,0.00035319,2]
[327641671,1716269444616,-150.0,0.00035321,2]
[327641672,1716269444625,-150.0,0.00035322,2]
[327641673,1716269444635,-150.0,0.00035323,2]
[327641674,1716269444644,-150.0,0.00035326,2]
[327641675,1716269444654,-150.0,0.00035326,2]
[327641676,1716269444664,-150.0,0.00035331,2]
[327641677,1716269444674,-150.0,0.00035333,2]
[327641678,1716269444684,-150.0,0.00035334,2]
[327641679,1716269444694,-150.0,0.00035334,2]
[327641680,1716269444703,-150.0,0.00035335,2]
[327641681,1716269444713,-1500.0,0.00035335,2]
[327641682,1716269444722,-150.0,0.00035336,2]
[327641683,1716269444732,-1500.0,0.00035337,2]
[327641684,1716269444742,-150.0,0.00035339,2]
[327641685,1716269444751,-150.0,0.00035341,2]
[327641686,1716269444762,-300.0,0.00035343,2]
[327641687,1716269444772,-150.0,0.00035346,2]
[327641688,1716269444782,-150.0,0.0003535,2]
[327641689,1716269444794,-300.0,0.00035351,2]
[327641690,1716269444805,-300.0,0.00035351,2]
[327641691,1716269444815,-150.0,0.00035351,2]
[327641692,1716269444826,-150.0,0.00035354,2]
[327641693,1716269444838,-154.81828761,0.00035354,2]
[327641694,1716269444847,-150.0,0.00035354,2]
[327641695,1716269444857,-150.0,0.00035354,2]
[327641696,1716269444870,-150.0,0.00035355,2]
[327641697,1716269444880,-300.0,0.00035361,2]
[327641698,1716269444890,-459.70216097,0.00035362,2]
[327641699,1716269444900,-150.0,0.00035362,2]
[327641700,1716269444910,-150.0,0.00035365,2]
[327641701,1716269444921,-150.0,0.00035366,2]
[327641702,1716269444931,-150.0,0.00035367,2]
[327641703,1716269444941,-150.0,0.00035368,2]
[327641704,1716269444952,-300.0,0.00035372,2]
[327641705,1716269444962,-150.0,0.00035372,2]
[327641706,1716269444971,-150.0,0.00035372,2]
[327641707,1716269444980,-1500.0,0.00035372,2]
[327641708,1716269444990,-233.83025265,0.00035373,2]
[327641709,1716269445000,-858.93,0.00035376,2]
[327641710,1716269445009,-150.0,0.00035376,2]
[327641711,1716269445019,-150.0,0.00035378,2]
[327641712,1716269445028,-150.0,0.00035378,2]
[327641713,1716269445038,-150.0,0.00035379,2]
[327641714,1716269445047,-216.16974735,0.00035381,2]
[327641715,1716269445057,-150.0,0.00035384,2]
[327641716,1716269445067,-1500.0,0.00035384,2]
[327641717,1716269445080,-150.0,0.00035385,2]
[327641718,1716269445089,-150.0,0.00035385,2]
[327641719,1716269445099,-150.0,0.00035388,2]
[327641720,1716269445108,-150.0,0.00035389,2]
[327641721,1716269445118,-3000.0,0.00035393,2]
[327641722,1716269445128,-150.0,0.00035395,2]
[327641723,1716269445138,-150.0,0.00035397,2]
[327641724,1716269445148,-150.0,0.00035399,2]
[327641725,1716269445157,-6570.4629,0.000354,2]
[327641726,1716269445167,-100000.0,0.000354,2]
[327641727,1716269445176,-1000.0,0.000354,2]
[327641728,1716269445185,-1500.0,0.000354,2]
[327641729,1716269445195,-1500.0,0.00035402,2]
[327641730,1716269445204,-150.0,0.00035404,2]
[327641731,1716269445224,-1500.0,0.00035406,2]
[327641732,1716269445234,-1500.0,0.00035406,2]
[327641733,1716269445244,-150.0,0.00035406,2]
[327641734,1716269445254,-150.0,0.00035407,2]
[327641735,1716269445263,-150.0,0.00035409,2]
[327641736,1716269445273,-150.0,0.00035411,2]
[327641737,1716269445283,-150.0,0.00035414,2]
[327641738,1716269445293,-150.0,0.00035417,2]
[327641739,1716269445303,-150.0,0.00035419,2]
[327641740,1716269445312,-300.0,0.00035421,2]
[327641741,1716269445322,-150.0,0.00035422,2]
[327641742,1716269445332,-150.0,0.00035427,2]
[327641743,1716269445342,-150.0,0.00035427,2]
[327641744,1716269445352,-150.0,0.00035435,2]
[327641745,1716269445362,-150.0,0.00035436,2]
[327641746,1716269445372,-150.0,0.00035438,2]
[327641747,1716269445381,-150.0,0.00035442,2]
[327641748,1716269445391,-1500.0,0.00035446,2]
[327641749,1716269445401,-3000.0,0.00035447,2]
[327641750,1716269445411,-3000.0,0.00035448,2]
[327641751,1716269445420,-150.0,0.00035449,2]
[327641752,1716269445431,-150.0,0.0003545,2]
[327641753,1716269445440,-150.0,0.00035451,2]
[327641754,1716269445452,-150.0,0.00035451,2]
[327641755,1716269445463,-150.0,0.00035453,2]
[327641756,1716269445472,-150.0,0.00035455,2]
[327641757,1716269445482,-150.0,0.00035457,2]
[327641758,1716269445491,-150.0,0.00035458,2]
[327641759,1716269445501,-3000.0,0.00035462,2]
[327641760,1716269445511,-150.0,0.00035463,2]
[327641761,1716269445521,-3000.0,0.00035464,2]
[327641762,1716269445531,-150.0,0.00035465,2]
[327641763,1716269445541,-150.0,0.00035466,2]
[327641764,1716269445551,-1572.87827001,0.00035469,2]
[327641765,1716269445561,-150.0,0.00035473,2]
[327641766,1716269445570,-150.0,0.00035473,2]
[327641767,1716269445580,-1500.0,0.00035475,2]
[327641768,1716269445590,-1233.30886904,0.00035476,2]
[327641769,1716269445608,-506.58578443,0.00035476,2]
[327641770,1716269445618,-319.92805198,0.00035477,30]
[327641771,1716269445630,-112.94877335,0.00035477,30]
[327641772,1716269445640,-150.0,0.00035478,2]
[327641773,1716269445650,-150.0,0.00035478,2]
[327641774,1716269445660,-1005.09122665,0.00035478,4]
[327641775,1716269445686,-500.0,0.00035478,4]
[327641776,1716269445700,-337.27249606,0.00035478,4]
[327641777,1716269445712,-6008.04238,0.00035478,4]
[327641778,1716269445737,-499.21105787,0.00035478,4]
[327641779,1716269445749,-12323.34420117,0.00035478,4]
[327641780,1716269445758,-442.23945233,0.00035479,6]
[327641784,1716269448633,-6404.71,0.00034394,2]
[327641785,1716269449081,-955.2,0.00034394,2]
[327641786,1716269449091,-155.0,0.00035477,4]
[327641787,1716269449100,-155.0,0.00035477,4]
[327641788,1716269449110,-209.36018515,0.00035477,4]
[327641789,1716269449119,-212.95826661,0.00035478,4]
[327641790,1716269449128,-705.71054767,0.00035479,6]
[327641791,1716269449138,-988.16,0.00035479,6]
[327641792,1716269449147,-1350.09,0.00035479,6]
[327641793,1716269449156,-1350.09,0.00035479,6]
[327641794,1716269449166,-747.01,0.00035479,6]
[327641795,1716269449175,-523.99949333,0.00035479,6]
[327641796,1716269449187,-223.01050667,0.00035479,6]
[327641797,1716269449196,-739.2,0.00035479,6]
[327641798,1716269449206,-1917.12,0.00035479,6]
[327641799,1716269449216,-1708.34,0.00035479,6]
[327641800,1716269449225,-961.81,0.00035479,6]
[327641801,1716269449235,-1708.34,0.00035479,6]
[327641802,1716269449244,-1057.26,0.00035479,6]
[327641803,1716269449253,-157.63214446,0.00035479,2]
[327641804,1716269449262,-655.5,0.00035479,6]
[327641805,1716269449272,-1503.48,0.00035479,6]
[327641806,1716269449281,-1503.48,0.00035479,6]
[327641807,1716269449290,-798.21,0.00035479,6]
[327641808,1716269449299,-500.0,0.00035479,6]
[327641809,1716269449308,-726.42,0.00035479,6]
[327641810,1716269449317,-726.42,0.00035479,6]
[327641811,1716269449326,-500.0,0.00035479,6]
[327641812,1716269449335,-554.29,0.00035479,6]
[327641813,1716269449344,-500.0,0.00035479,6]
[327641814,1716269449353,-1261.1,0.00035479,6]
[327641815,1716269449363,-1261.1,0.00035479,6]
[327641816,1716269449372,-500.0,0.00035479,6]
[327641817,1716269449381,-628.81,0.00035479,6]
[327641818,1716269449390,-190.57,0.00035479,6]
[327641819,1716269449400,-932.4,0.00035479,6]
[327641820,1716269449409,-1686.51,0.00035479,6]
[327641821,1716269449418,-1686.51,0.00035479,6]
[327641822,1716269449427,-953.2,0.00035479,6]
[327641823,1716269449437,-953.2,0.00035479,6]
[327641824,1716269449446,-518.944845,0.00035479,6]
[327641825,1716269449456,-735.78,0.00035479,6]
[327641826,1716269449466,-1168.49,0.00035479,6]
[327641827,1716269449475,-1168.49,0.00035479,6]
[327641828,1716269449484,-607.14,0.00035479,6]
[327641829,1716269449494,-607.14,0.00035479,6]
[327641830,1716269449503,-1027.83,0.00035479,6]
[327641831,1716269449512,-500.0,0.00035479,6]
[327641832,1716269449522,-788.97,0.00035479,6]
[327641833,1716269449531,-500.0,0.00035479,6]
[327641834,1716269449540,-545.04,0.00035479,6]
[327641835,1716269449549,-662.3,0.00035479,6]
[327641836,1716269449559,-627.25,0.00035479,6]
[327641837,1716269449569,-662.3,0.00035479,6]
[327641838,1716269449578,-500.0,0.00035479,6]
[327641839,1716269449588,-1106.67,0.00035479,6]
[327641840,1716269449598,-1669.73,0.00035479,6]
[327641841,1716269449607,-931.15,0.00035479,6]
[327641842,1716269449617,-778.21,0.00035479,6]
[327641843,1716269449631,-500.0,0.00035479,6]
[327641844,1716269449641,-1148.33,0.00035479,6]
[327641845,1716269449651,-845.7,0.00035479,6]
[327641846,1716269449661,-786.34,0.00035479,6]
[327641847,1716269449671,-904.3,0.00035479,6]
[327641848,1716269449681,-904.3,0.00035479,6]
[327641849,1716269449691,-516.05446826,0.00035479,6]
[327641850,1716269449703,-1477.86,0.00035479,6]
[327641851,1716269449714,-942.7,0.00035479,6]
[327641852,1716269449724,-942.7,0.00035479,6]
[327641853,1716269449734,-500.0,0.00035479,6]
[327641854,1716269449744,-500.0,0.00035479,6]
[327641855,1716269449754,-510.29,0.00035479,6]
[327641856,1716269449764,-503.59,0.00035479,6]
[327641857,1716269449774,-503.59,0.00035479,6]
[327641858,1716269449785,-500.0,0.00035479,6]
[327641859,1716269449799,-500.0,0.00035479,6]
[327641860,1716269449808,-1565.48,0.00035479,6]
[327641861,1716269449819,-500.0,0.00035479,6]
[327641862,1716269449829,-705.19,0.00035479,6]
[327641863,1716269449840,-614.49,0.00035479,6]
[327641864,1716269449849,-614.49,0.00035479,6]
[327641865,1716269449859,-839.44,0.00035479,6]
[327641866,1716269449871,-838.54,0.00035479,6]
[327641867,1716269449882,-500.0,0.00035479,6]
[327641868,1716269449892,-500.0,0.00035479,6]
[327641869,1716269449903,-803.4,0.00035479,6]
[327641870,1716269449912,-803.4,0.00035479,6]
[327641871,1716269449923,-504.40235357,0.00035479,6]
[327641872,1716269449933,-500.0,0.00035479,6]
[327641873,1716269449943,-500.0,0.00035479,6]
[327641874,1716269449957,-787.06,0.00035479,6]
[327641875,1716269449967,-500.0,0.00035479,6]
[327641876,1716269449977,-500.0,0.00035479,6]
[327641877,1716269449987,-740.45,0.00035479,6]
[327641878,1716269449996,-500.0,0.00035479,6]
[327641879,1716269450007,-500.0,0.00035479,6]
[327641880,1716269450017,-2738.71,0.00035479,6]
[327641881,1716269450028,-2738.71,0.00035479,6]
[327641882,1716269450038,-852.89,0.00035479,6]
[327641883,1716269450048,-852.89,0.00035479,6]
[327641884,1716269450058,-724.07,0.00035479,6]
[327641885,1716269450067,-503.24763409,0.00035479,6]
[327641886,1716269450077,-731.07,0.00035479,6]
[327641887,1716269450086,-731.07,0.00035479,6]
[327641888,1716269450096,-671.31,0.00035479,6]
[327641889,1716269450106,-674.0,0.00035479,6]
[327641890,1716269450117,-500.0,0.00035479,6]
[327641891,1716269450127,-500.0,0.00035479,6]
[327641892,1716269450136,-508.69648541,0.00035479,6]
[327641893,1716269450145,-1002.57,0.00035479,6]
[327641894,1716269450155,-579.04,0.00035479,6]
[327641895,1716269450164,-530.15,0.00035479,6]
[327641896,1716269450174,-928.86,0.00035479,6]
[327641897,1716269450184,-928.86,0.00035479,6]
[327641898,1716269450193,-500.0,0.00035479,6]
[327641899,1716269450204,-887.16,0.00035479,6]
[327641900,1716269450214,-500.0,0.00035479,6]
[327641901,1716269450224,-887.16,0.00035479,6]
[327641902,1716269450233,-883.44,0.00035479,6]
[327641903,1716269450244,-846.8,0.00035479,6]
[327641904,1716269450255,-846.8,0.00035479,6]
[327641905,1716269450264,-798.99,0.00035479,6]
[327641906,1716269450274,-752.66,0.00035479,6]
[327641907,1716269450283,-1303.26,0.00035479,6]
[327641908,1716269450293,-1303.26,0.00035479,6]
[327641909,1716269450303,-934.69,0.00035479,6]
[327641910,1716269450312,-500.0,0.00035479,6]
[327641911,1716269450322,-500.0,0.00035479,6]
[327641912,1716269450332,-500.0,0.00035479,6]
[327641913,1716269450342,-500.0,0.00035479,6]
[327641914,1716269450353,-797.36,0.00035479,6]
[327641915,1716269450363,-500.0,0.00035479,6]
[327641916,1716269450372,-500.0,0.00035479,6]
[327641917,1716269450382,-1405.9,0.00035479,6]
[327641918,1716269450391,-899.18,0.00035479,6]
[327641919,1716269450401,-500.0,0.00035479,6]
[327641920,1716269450411,-500.0,0.00035479,6]
[327641921,1716269450419,-10.88084204,0.00035479,6]
[327641922,1716269450839,-432.97000676,0.00035479,6]
[327641925,1716269496945,623.69279949,0.00017259,2]
[327641927,1716269502412,155.0,0.00017259,2]
[327641929,1716269513766,535.88765417,0.00017259,2]
[327641930,1716269514354,208.68716527,0.00017259,2]
[327641932,1716269519974,156.15495343,0.00017259,2]
[327641943,1716269587024,2000.0,0.00017259,2]
[327641947,1716269616231,160.38,0.00013973,2]
[327641950,1716269635751,867.78186864,9e-05,2]
[327641952,1716269672625,6936.40046193,6.94e-05,2]
[327641955,1716269745323,30736.94965328,0.000199,3]
[327641956,1716269759503,322.18403714,0.00027398,30]
[327641959,1716269802691,323782.18753007,0.00013,2]
[327641983,1716270217208,162.09,0.00013973,2]
[327641989,1716270433171,-554.56211892,0.00017255,2]
[327641990,1716270433194,-252.44625317,0.00017256,2]
[327641991,1716270433215,-1789.09722972,0.00017259,2]
[327641992,1716270433236,-3865.34838289,0.000199,3]
[327641993,1716270441108,-252.44625317,0.00017254,2]
[327641994,1716270441129,-4932.78914393,0.000199,3]
[327641995,1716270447547,-554.56211892,0.00017253,2]
[327641996,1716270447568,-19712.28972602,0.000199,3]
[327642010,1716270551146,-6703.13410209,0.000199,3]
[327642011,1716270553091,-676.60536895,0.000199,3]
[327642012,1716270553121,-11603.10151678,0.000199,3]
[327642018,1716270632177,-1694.67418651,0.000199,3]
[327642027,1716270632321,-711.21,0.000199,3]
[327642028,1716270632334,-3189.83507936,0.000199,3]
[327642029,1716270632346,-314.27027061,0.000199,3]
[327642030,1716270632468,-1723.49402903,0.000199,3]
[327642031,1716270632491,-471.73465207,0.000199,3]
[327642032,1716270632504,-5688.72210933,0.000199,3]
[327642033,1716270632514,-155.0,0.00020847,4]
[327642034,1716270632523,-1032.28789067,0.00020848,2]
[327642035,1716270632535,-318.64482262,0.00020848,2]
[327642036,1716270632611,-4504.00728671,0.00020848,2]
[327642037,1716270632621,-1244.83759732,0.0002085,2]
[327642038,1716270632631,-162.46980569,0.00021661,10]
[327642039,1716270632641,-358.19,0.00021661,2]
[327642040,1716270632651,-787.45461326,0.00022272,2]
[327642041,1716270632660,-150.25232363,0.00022273,2]
[327642042,1716270632815,-56.38167906,0.00023168,2]
[327642049,1716270637863,-443.60832094,0.00023168,2]
[327642050,1716270637872,-450.45893041,0.00024,3]
[327642051,1716270637881,-193.37,0.00025742,2]
[327642052,1716270637891,-150.0,0.000259,2]
[327642053,1716270637900,-166.66666667,0.00026332,2]
[327642054,1716270637910,-155.0,0.00027397,2]
[327642055,1716270637920,-3415.0,0.000274,3]
[327642056,1716270637929,-152.89424695,0.00028925,2]
[327642057,1716270637939,-160.38,0.00029349,2]
[327642058,1716270637952,-3363.09659807,0.000298,2]
[327642059,1716270637963,-1172.77,0.00029991,2]
[327642060,1716270637973,-2000.0,0.0003182,2]
[327642061,1716270637983,-500.0,0.00031837,2]
[327642062,1716270637993,-207.86,0.0003185,120]
[327642063,1716270638005,-807.92,0.00031879,2]
[327642064,1716270638015,-3959.63013699,0.00031883,2]
[327642065,1716270638027,-40.36986301,0.00031883,2]
[327642066,1716270638037,-339.17922691,0.0003191,4]
[327642067,1716270638048,-160.0,0.00031911,2]
[327642068,1716270638059,-250.0,0.00032021,2]
[327642069,1716270638068,-200.0,0.00032057,2]
[327642070,1716270638078,-201.56676409,0.00032255,2]
[327642071,1716270638098,-971.20323591,0.00032255,2]
[327642072,1716270638107,-462.1350991,0.00032342,4]
[327642073,1716270638117,-250.0,0.00032343,2]
[327642074,1716270638126,-1000.0,0.00033216,2]
[327642075,1716270638135,-348.58166499,0.00033216,2]
[327642080,1716270639774,-605.88914959,0.00033216,2]
[327642081,1716270640154,-45.52918542,0.00033216,2]
[327642082,1716270640167,-591.71212165,0.00033216,2]
[327642083,1716270640182,-365.53390662,0.00033216,2]
[327642084,1716270640321,-84.75397173,0.00033216,2]
[327642085,1716270640331,-153.68,0.000335,2]
[327642086,1716270640342,-153.68,0.000335,2]
[327642087,1716270640351,-153.68,0.000335,2]
[327642088,1716270640361,-153.68,0.000335,2]
[327642089,1716270640370,-153.68,0.000335,2]
[327642090,1716270640380,-153.68,0.000335,2]
[327642091,1716270640389,-153.68,0.000335,2]
[327642092,1716270640399,-153.68,0.000335,2]
[327642093,1716270640407,-141.50349187,0.000335,2]
[327642156,1716270642845,-12.17650813,0.000335,2]
[327642158,1716270642855,-153.68,0.000335,2]
[327642159,1716270642865,-153.68,0.000335,2]
[327642160,1716270642875,-153.68,0.000335,2]
[327642161,1716270642885,-33.90067157,0.00034058,2]
[327642162,1716270642994,-838.09932843,0.00034058,2]
[327642163,1716270643004,-499.999999,0.00034084,2]
[327642164,1716270643014,-459.80411429,0.00034084,2]
[327642165,1716270643024,-6960.01946172,0.00034084,2]
[327642166,1716270643034,-214.92,0.00034484,120]
[327642167,1716270643146,-1172.77,0.00034519,2]
[327642168,1716270643215,-415.6,0.00034548,2]
[327642169,1716270643225,-415.6,0.00034548,2]
[327642170,1716270643235,-415.6,0.00034548,2]
[327642171,1716270643249,-807.92,0.00034619,2]
[327642172,1716270643259,-150.0,0.00034685,2]
[327642173,1716270643268,-500.49,0.00034931,2]
[327642174,1716270643279,-155.53,0.00034959,2]
[327642175,1716270643289,-4539.80059345,0.00034999,2]
[327642176,1716270643298,-19478.95632452,0.00034999,2]
[327642177,1716270643308,-164.87383979,0.00035,30]
[327642178,1716270643317,-2000.0,0.00035,2]
[327642179,1716270643327,-2000.0,0.00035,2]
[327642180,1716270643336,-2000.0,0.00035,2]
[327642181,1716270643346,-2985.73625279,0.00035034,4]
[327642182,1716270643356,-7199.73,0.00035035,5]
[327642183,1716270643365,-2000.0,0.00035085,2]
[327642184,1716270643375,-1094.699,0.0003512,2]
[327642185,1716270643384,-358.32339505,0.00035143,3]
[327642186,1716270643394,-180.0,0.00035155,2]
[327642187,1716270643403,-295.69731157,0.00035165,2]
[327642188,1716270643413,-295.69731154,0.00035191,2]
[327642189,1716270643423,-9168.6185,0.00035198,2]
[327642190,1716270643432,-8323.5302363,0.00035199,2]
[327642191,1716270643441,-2500.0,0.000352,2]
[327642193,1716270643453,-344.58732722,0.000352,2]
[327642195,1716270643462,-200.0,0.00035214,20]
[327642197,1716270643472,-1000.0,0.00035214,30]
[327642199,1716270643482,-500.0,0.00035214,10]
[327642201,1716270643492,-8323.53023629,0.00035221,2]
[327642203,1716270643502,-150.0,0.00035224,2]
[327642205,1716270643512,-150.0,0.00035225,2]
[327642207,1716270643521,-150.0,0.00035236,2]
[327642209,1716270643530,-150.0,0.00035243,2]
[327642211,1716270643539,-8323.53023629,0.00035243,2]
[327642213,1716270643549,-150.0,0.00035244,2]
[327642215,1716270643558,-344.58732718,0.0003525,2]
[327642217,1716270643568,-150.0,0.00035251,2]
[327642219,1716270643577,-150.0,0.00035259,2]
[327642221,1716270643587,-150.0,0.00035262,2]
[327642223,1716270643597,-150.0,0.00035264,2]
[327642225,1716270643606,-10000.0,0.00035265,2]
[327642227,1716270643616,-8323.53023629,0.00035265,2]
[327642229,1716270643626,-150.0,0.00035274,2]
[327642231,1716270643635,-150.0,0.0003528,2]
[327642235,1716270643647,-150.0,0.00035281,2]
[327642238,1716270643657,-150.0,0.00035284,2]
[327642241,1716270643666,-150.0,0.00035284,2]
[327642244,1716270643676,-300.0,0.00035287,2]
[327642247,1716270643686,-8323.53023629,0.00035287,2]
[327642249,1716270643697,-800.0,0.00035288,2]
[327642252,1716270643706,-2000.0,0.00035299,2]
[327642255,1716270643715,-2000.0,0.00035299,2]
[327642258,1716270643725,-2000.0,0.00035299,2]
[327642261,1716270643733,-2254.07582849,0.000353,7]
[327642266,1716270643768,-247745.92417151,0.000353,7]
[327642268,1716270643778,-150.0,0.000353,2]
[327642270,1716270643787,-344.58732718,0.000353,2]
[327642272,1716270643797,-150.0,0.00035307,2]
[327642273,1716270643806,-8323.53023629,0.0003531,2]
[327642274,1716270643816,-150.0,0.0003531,2]
[327642275,1716270643825,-150.0,0.00035311,2]
[327642276,1716270643835,-150.0,0.00035313,2]
[327642277,1716270643845,-150.0,0.00035322,2]
[327642278,1716270643855,-150.0,0.00035329,2]
[327642279,1716270643865,-8323.53023629,0.00035332,2]
[327642280,1716270643874,-150.0,0.00035335,2]
[327642281,1716270643883,-150.0,0.00035339,2]
[327642282,1716270643892,-500.0,0.00035341,10]
[327642283,1716270643902,-3590.14,0.00035342,6]
[327642284,1716270643912,-150.0,0.00035348,2]
[327642286,1716270643921,-150.0,0.0003535,2]
[327642288,1716270643931,-344.58732718,0.0003535,2]
[327642290,1716270643940,-8323.53023629,0.00035354,2]
[327642291,1716270643950,-150.0,0.0003536,2]
[327642294,1716270643960,-150.0,0.00035366,2]
[327642295,1716270643970,-150.0,0.00035369,2]
[327642297,1716270643979,-150.0,0.00035375,2]
[327642299,1716270643989,-8323.53023629,0.00035376,2]
[327642302,1716270643999,-3590.14,0.00035376,6]
[327642303,1716270644009,-7500.0,0.00035377,2]
[327642305,1716270644018,-214.0,0.00035379,2]
[327642307,1716270644028,-1000.0,0.00035379,2]
[327642309,1716270644038,-39041.9275,0.00035379,2]
[327642312,1716270644048,-10000.0,0.00035379,120]
[327642314,1716270644057,-1000.0,0.00035379,120]
[327642315,1716270644068,-171.29139753,0.00035379,2]
[327642318,1716270644077,-547.23707803,0.00035379,8]
[327642320,1716270644087,-150.0,0.0003538,2]
[327642322,1716270644096,-547.23707796,0.00035381,8]
[327642323,1716270644105,-547.23707796,0.00035383,8]
[327642326,1716270644117,-547.23707796,0.00035384,8]
[327642328,1716270644126,-547.23707796,0.00035386,8]
[327642330,1716270644135,-547.23707796,0.00035388,8]
[327642331,1716270644144,-547.23707796,0.0003539,8]
[327642333,1716270644154,-547.23707796,0.00035392,8]
[327642335,1716270644164,-547.23707796,0.00035394,8]
[327642337,1716270644176,-547.23707796,0.00035395,8]
[327642340,1716270644186,-547.23707796,0.00035397,8]
[327642342,1716270644196,-8323.53023629,0.00035398,2]
[327642344,1716270644207,-322.0,0.00035399,5]
[327642346,1716270644216,-150.0,0.00035399,2]
[327642348,1716270644226,-547.23707796,0.00035399,8]
[327642350,1716270644235,-344.58732718,0.000354,2]
[327642352,1716270644246,-150.0,0.00035401,2]
[327642354,1716270644256,-411.438111,0.0003542,2]
[327642356,1716270644265,-150.0,0.00035422,2]
[327642357,1716270644275,-150.0,0.00035423,2]
[327642359,1716270644284,-300.0,0.00035424,2]
[327642362,1716270644293,-150.0,0.00035425,2]
[327642364,1716270644304,-150.0,0.00035427,2]
[327642366,1716270644313,-150.0,0.00035444,2]
[327642368,1716270644322,-150.0,0.00035448,2]
[327642370,1716270644332,-1500.0,0.00035452,2]
[327642371,1716270644341,-800.0,0.00035452,2]
[327642374,1716270644351,-800.0,0.00035452,2]
[327642375,1716270644360,-150.0,0.00035457,2]
[327642377,1716270644369,-150.0,0.00035466,2]
[327642379,1716270644379,-204.24870683,0.00035467,2]
[327642381,1716270644388,-204.24870683,0.00035469,2]
[327642384,1716270644397,-150.0,0.00035474,2]
[327642386,1716270644408,-1546.57302531,0.00035475,2]
[327642388,1716270644418,-12372.58420248,0.00035476,2]
[327642390,1716270644427,-1000.0,0.00035477,2]
[327642392,1716270644437,-1000.0,0.00035477,2]
[327642394,1716270644446,-1000.0,0.00035477,2]
[327642396,1716270644455,-1000.0,0.00035477,2]
[327642398,1716270644465,-1000.0,0.00035477,2]
[327642400,1716270644475,-1000.0,0.00035477,2]
[327642402,1716270644484,-1000.0,0.00035477,2]
[327642404,1716270644493,-1000.0,0.00035477,2]